bitfinex-derivatives/quotes_SOLF0:USTF0_20250419
["timestamp","ask_amount","ask_price","bid_price","bid_amount"]
[1745095299831,8.9411454,139.01,138.95,34.2011454]
[1745095300832,8.9411454,138.97,138.93,8.9411454]
[1745095301222,8.9411454,138.97,138.93,16.1400454]
[1745095302836,8.9411454,138.97,138.92,32.4595]
[1745095303137,8.9411454,138.97,138.92,25.26]
[1745095303438,8.9411454,138.97,138.93,7.1991]
[1745095308043,25.26,138.98,138.93,8.9411454]
[1745095308342,2.0105,139.0,138.95,8.9411454]
[1745095308544,34.2011454,139.01,138.97,7.1966]
[1745095315148,34.2011454,139.01,138.96,7.1973]
[1745095318148,8.9411454,138.99,138.95,7.1979]
[1745095319847,8.9411454,138.99,138.96,7.1975]
[1745095320150,34.2011454,139.01,138.95,8.9411454]
[1745095320851,34.2011454,139.01,138.96,7.1973]
[1745095327253,8.9411454,138.99,138.95,7.1981]
[1745095327557,8.9411454,138.99,138.93,14.6811454]
[1745095327757,8.9411454,138.99,138.96,7.1973]
[1745095333361,8.9411454,138.99,138.97,7.197]
[1745095335261,34.2011454,139.01,138.98,7.1965]
[1745095335458,34.2011454,139.01,138.97,8.9411454]
[1745095335960,34.2011454,139.01,138.99,7.1956]
[1745095340863,34.2011454,139.01,138.98,7.1963]
[1745095342262,34.2011454,139.01,138.99,7.1959]
[1745095342863,34.2011454,139.01,138.98,7.1963]
[1745095346866,34.2011454,139.01,138.94,8.9411454]
[1745095347366,34.2011454,139.01,138.96,8.9411454]
[1745095375990,25.26,139.01,138.96,8.9411454]
[1745095384795,25.26,139.01,138.98,8.9411454]
[1745095384989,12.9735454,139.04,138.98,8.9411454]
[1745095385292,38.1135454,139.04,138.98,8.9411454]
[1745095389394,8.9411454,139.06,139.0,8.9411454]
[1745095390192,8.9411454,139.06,139.02,8.9411454]
[1745095390393,25.14,139.07,139.02,8.9411454]
[1745095411717,25.14,139.07,139.01,25.14]
[1745095412017,25.14,139.07,139.01,34.0811454]
[1745095414720,25.14,139.07,139.01,25.14]
[1745095414921,25.14,139.07,139.01,34.0811454]
[1745095415722,8.9411454,139.04,138.99,8.9411454]
[1745095416123,34.0811454,139.04,138.99,8.9411454]
[1745095417725,34.0811454,139.04,138.98,25.14]
[1745095417922,8.9411454,139.02,138.96,8.9411454]
[1745095423730,25.14,139.01,138.96,8.9411454]
[1745095434839,8.9411454,139.02,138.96,8.9411454]
[1745095435034,1.8796,139.05,139.0,8.9411454]
[1745095435240,1.8796,139.05,139.02,8.9411454]
[1745095437443,27.0196,139.05,139.02,8.9411454]
[1745095441249,27.0196,139.05,139.0,8.9411454]
[1745095441846,8.9411454,139.03,138.98,8.9411454]
[1745095442041,8.9411454,139.01,138.97,8.9411454]
[1745095442549,25.14,139.02,138.97,8.9411454]
[1745095443046,8.9411454,139.01,138.95,8.9411454]
[1745095444754,25.14,139.02,138.97,8.9411454]
[1745095444953,25.14,139.02,138.99,8.9411454]
[1745095461071,25.14,139.02,139.01,8.9411454]
[1745095475172,1.8796,139.05,139.01,8.9411454]
[1745095475376,27.0196,139.05,139.01,8.9411454]
[1745095490092,35.9607454,139.05,139.0,8.9411454]
[1745095492490,35.9607454,139.05,138.98,8.9411454]
[1745095492684,8.9411454,139.03,138.98,8.9411454]
[1745095492889,25.14,139.02,138.98,8.9411454]
[1745095493188,8.9411454,139.01,138.96,8.9411454]
[1745095500696,25.14,139.02,138.98,8.9411454]
[1745095501396,25.14,139.02,139.0,8.9411454]
[1745095509999,25.14,139.02,138.98,8.9411454]
[1745095554033,25.14,139.01,138.98,8.9411454]
[1745095561638,25.14,139.01,138.96,8.9411454]
[1745095574045,25.14,139.02,138.96,8.9411454]
[1745095578652,25.14,139.01,138.96,8.9411454]
[1745095579552,25.14,139.01,138.91,361.0]
[1745095579553,8.9411454,138.99,138.91,386.14]
[1745095579751,25.14,138.98,138.94,8.9411454]
[1745095579955,25.14,138.98,138.92,8.9411454]
[1745095579956,8.9411454,138.97,138.92,8.9411454]
[1745095589968,25.14,138.98,138.92,8.9411454]
[1745095590256,8.9411454,139.02,138.96,8.9411454]
[1745095590460,8.9411454,139.02,138.89,5.8411]
[1745095590461,34.0811454,139.04,139.0,8.9411454]
[1745095590655,25.14,139.04,139.0,8.9411454]
[1745095590962,8.9411454,139.03,138.97,34.0811454]
[1745095591159,25.14,139.04,138.99,8.9411454]
[1745095591364,25.14,139.04,139.02,8.9411454]
[1745095591864,25.14,139.04,139.0,8.9411454]
[1745095620887,34.0811454,139.04,138.98,8.9411454]
[1745095629998,8.9411454,139.02,138.96,8.9411454]
[1745095630188,25.12,139.01,138.96,8.9411454]
[1745095646406,25.12,139.01,138.98,8.9411454]
[1745095655419,25.12,139.01,138.96,8.9411454]
[1745095656115,8.9411454,139.0,138.94,34.0611454]
[1745095657621,10.8901454,139.0,138.94,25.12]
[1745095658524,10.8901454,139.0,138.93,8.9411454]
[1745095659123,10.8901454,139.0,138.95,8.9411454]
[1745095659325,25.12,139.01,138.95,8.9411454]
[1745095663727,10.8848454,139.03,138.97,8.9411454]
[1745095663928,10.8848454,139.03,138.97,34.0611454]
[1745095674238,8.9411454,139.03,138.97,34.0611454]
[1745095674439,34.0611454,139.04,138.97,34.0611454]
[1745095675337,8.9411454,139.02,138.97,34.0611454]
[1745095678643,8.9411454,139.02,138.97,8.9411454]
[1745095681350,34.0611454,139.04,138.97,8.9411454]
[1745095683150,25.12,139.04,138.99,8.9411454]
[1745095691455,34.0611454,139.04,138.99,8.9411454]
[1745095692156,34.0611454,139.04,138.98,25.12]
[1745095693261,25.12,139.04,138.99,8.9411454]
[1745095695365,25.12,139.04,139.01,8.9411454]
[1745095696066,8.9411454,139.06,139.01,8.9411454]
[1745095701867,8.9411454,139.06,138.98,25.12]
[1745095702165,8.9411454,139.04,138.99,8.9411454]
[1745095704765,34.0611454,139.04,138.99,8.9411454]
[1745095714869,25.12,139.04,138.99,8.9411454]
[1745095720273,34.0611454,139.04,138.99,8.9411454]
[1745095753904,26.9753,139.07,139.01,8.9411454]
[1745095758998,8.9411454,139.06,139.01,8.9411454]
[1745095761305,8.9411454,139.06,138.99,34.0611454]
[1745095767407,68.17419379,139.15,139.05,8.9411454]
[1745095767606,68.17419379,139.15,139.0,571.03884892]
[1745095767607,8.9411454,139.13,139.06,34.0611454]
[1745095768305,98.53349379,139.16,139.08,8.9411454]
[1745095768611,8.9411454,139.15,139.08,8.9411454]
[1745095773719,34.0411454,139.15,139.08,8.9411454]
[1745095779826,8.9411454,139.13,139.08,8.9411454]
[1745095799442,34.0411454,139.15,139.08,8.9411454]
[1745095802243,8.9411454,139.13,139.08,8.9411454]
[1745095808341,8.9411454,139.13,139.07,25.12]
[1745095808542,8.9411454,139.09,139.02,3.9532]
[1745095808847,8.9411454,139.07,139.02,3.9532]
[1745095809142,8.9411454,139.05,138.99,8.9411454]
[1745095809347,8.9411454,139.03,138.98,34.0411454]
[1745095809647,8.9411454,139.01,138.97,3.9894]
[1745095809846,8.9411454,139.01,138.96,25.44192748]
[1745095810046,8.9411454,138.99,138.96,25.44192748]
[1745095810245,8.9411454,139.01,138.96,25.44192748]
[1745095811142,8.9411454,139.01,138.96,32.63902748]
[1745095811347,8.9411454,138.99,138.96,25.44192748]
[1745095811749,8.9411454,138.97,138.96,25.44192748]
[1745095812047,8.9411454,138.97,138.92,207.6681456]
[1745095812048,8.9411454,138.97,138.92,37.9410454]
[1745095812351,34.0411454,138.97,138.93,7.1988]
[1745095812653,34.0411454,138.97,138.92,37.9410454]
[1745095812950,34.0411454,138.97,138.94,7.1982]
[1745095813248,8.9411454,138.95,138.91,7.2002]
[1745095813449,8.9411454,138.93,138.91,7.2002]
[1745095817855,8.9411454,138.93,138.88,10.8601454]
[1745095818455,8.9411454,138.89,138.82,25.12]
[1745095818753,8.9411454,138.89,138.83,14.8485454]
[1745095819849,34.0611454,138.91,138.87,8.9411454]
[1745095820051,25.12,138.94,138.89,8.9411454]
[1745095820352,25.12,138.94,138.91,8.9411454]
[1745095821355,25.12,138.94,138.89,12.9235454]
[1745095827860,32.3187,138.94,138.89,12.9235454]
[1745095828160,25.12,138.94,138.89,12.9235454]
[1745095837574,32.3186,138.94,138.89,12.9235454]
[1745095837774,25.12,138.94,138.89,12.9235454]
[1745095839475,25.12,138.94,138.89,3.9824]
[1745095840175,32.3187,138.94,138.89,3.9824]
[1745095848687,32.3187,138.94,138.89,2.0197]
[1745095849084,32.3187,138.94,138.89,10.9608454]
[1745095851886,25.12,138.94,138.93,8.9411454]
[1745095852086,25.16,138.97,138.93,8.9411454]
[1745095852487,32.3573,138.97,138.93,8.9411454]
[1745095852690,25.16,138.97,138.95,8.9411454]
[1745095854894,32.3572,138.97,138.95,8.9411454]
[1745095861807,25.16,138.97,138.93,8.9411454]
[1745095861998,25.16,138.97,138.91,8.9411454]
[1745095862198,27.1423,138.97,138.91,8.9411454]
[1745095862400,7.1982,138.95,138.93,8.9411454]
[1745095862600,27.1423,138.97,138.93,8.9411454]
[1745095862998,7.1978,138.96,138.93,8.9411454]
[1745095871706,27.1423,138.97,138.89,5.9615]
[1745095871908,25.16,138.97,138.95,8.9411454]
[1745095873008,602.3358,139.0,138.95,8.9411454]
[1745095873205,595.14,139.0,138.97,8.9411454]
[1745095873910,602.3357,139.0,138.97,8.9411454]
[1745095874112,1.873,139.01,138.97,8.9411454]
[1745095874306,25.12,139.02,138.99,8.9411454]
[1745095874503,25.12,139.05,139.01,8.9411454]
[1745095875512,25.12,139.05,139.0,8.9411454]
[1745095875809,8.9411454,139.03,138.96,8.9411454]
[1745095876014,8.9411454,139.01,138.96,8.9411454]
[1745095876210,8.9411454,139.01,138.93,25.12]
[1745095876409,10.9080454,139.01,138.93,25.12]
[1745095876711,10.9080454,139.01,138.94,8.9411454]
[1745095878317,7.1963,138.99,138.94,8.9411454]
[1745095878610,32.3163,138.99,138.94,8.9411454]
[1745095878805,34.0611454,138.99,138.94,8.9411454]
[1745095879008,7.197,138.98,138.94,8.9411454]
[1745095879208,8.9411454,138.97,138.9,34.0611454]
[1745095879419,8.9411454,138.95,138.9,8.9411454]
[1745095879913,7.1987,138.94,138.9,8.9411454]
[1745095880314,8.9411454,138.95,138.9,8.9411454]
[1745095880514,16.1394454,138.95,138.9,8.9411454]
[1745095880717,8.9411454,138.95,138.9,8.9411454]
[1745095881310,7.1987,138.94,138.9,8.9411454]
[1745095881915,16.1394454,138.95,138.9,8.9411454]
[1745095883317,7.1987,138.94,138.9,8.9411454]
[1745095884618,8.9411454,138.95,138.9,8.9411454]
[1745095884814,25.12,138.96,138.9,8.9411454]
[1745095886211,32.318,138.96,138.9,8.9411454]
[1745095886820,25.12,138.96,138.92,8.9411454]
[1745095891021,32.3178,138.96,138.92,8.9411454]
[1745095891423,25.12,138.96,138.92,8.9411454]
[1745095894325,32.3176,138.96,138.92,8.9411454]
[1745095894526,25.12,138.96,138.92,8.9411454]
[1745095895025,32.3178,138.96,138.92,8.9411454]
[1745095896522,25.12,138.96,138.9,34.0611454]
[1745095897027,8.9411454,138.95,138.9,34.0611454]
[1745095897227,8.9411454,138.95,138.9,8.9411454]
[1745095897627,7.199,138.94,138.9,8.9411454]
[1745095905139,16.1394454,138.95,138.9,8.9411454]
[1745095906742,7.1988,138.94,138.9,8.9411454]
[1745095907442,7.1991,138.93,138.9,8.9411454]
[1745095907646,8.9411454,138.95,138.9,8.9411454]
[1745095908041,7.1988,138.94,138.9,8.9411454]
[1745095912472,7.1992,138.93,138.9,8.9411454]
[1745095912679,8.9411454,138.95,138.9,8.9411454]
[1745095914276,7.1987,138.94,138.9,8.9411454]
[1745095917575,8.9411454,138.95,138.9,8.9411454]
[1745095917779,8.9411454,138.91,138.87,8.9411454]
[1745095918080,34.0611454,138.91,138.87,8.9411454]
[1745095918973,25.12,138.91,138.87,8.9411454]
[1745095919273,7.2007,138.9,138.87,8.9411454]
[1745095920377,32.3204,138.91,138.87,8.9411454]
[1745095921273,25.12,138.91,138.87,8.9411454]
[1745095921471,25.14,138.94,138.89,8.9411454]
[1745095921663,25.14,138.94,138.91,8.9411454]
[1745095922268,32.339,138.94,138.91,8.9411454]
[1745095924054,25.14,138.94,138.91,8.9411454]
[1745095925657,32.3391,138.94,138.91,8.9411454]
[1745095927353,25.14,138.94,138.91,8.9411454]
[1745095927858,32.3388,138.94,138.91,8.9411454]
[1745095929358,32.3388,138.94,138.89,8.9411454]
[1745095929860,41.2799454,138.94,138.89,8.9411454]
[1745095932955,34.0811454,138.94,138.89,8.9411454]
[1745095933156,34.0811454,138.94,138.87,8.9411454]
[1745095933460,7.1999,138.92,138.87,8.9411454]
[1745095944160,7.1999,138.92,138.89,8.9411454]
[1745095946367,8.9411454,138.92,138.87,8.9411454]
[1745095946764,25.14,138.91,138.87,8.9411454]
[1745095947569,32.3404,138.91,138.87,8.9411454]
[1745095948071,25.14,138.91,138.87,8.9411454]
[1745095948367,25.14,138.91,138.89,8.9411454]
[1745095950570,32.3402,138.91,138.89,8.9411454]
[1745095951871,25.14,138.91,138.89,8.9411454]
[1745095960479,25.14,138.91,138.87,8.9411454]
[1745095978809,32.3388,138.94,138.89,8.9411454]
[1745095979009,25.14,138.94,138.89,8.9411454]
[1745095979207,34.0811454,138.94,138.89,8.9411454]
[1745095979401,7.1994,138.93,138.89,8.9411454]
[1745095989910,25.14,138.94,138.91,8.9411454]
[1745095990209,25.14,138.94,138.87,25.14]
[1745095990210,26.984,138.97,138.93,8.9411454]
[1745095990410,25.14,138.97,138.95,8.9411454]
[1745095991411,7.1963,138.99,138.95,8.9411454]
[1745095993613,7.1967,138.98,138.95,8.9411454]
[1745095996815,7.1971,138.97,138.95,8.9411454]
[1745096007317,7.1968,138.98,138.95,8.9411454]
[1745096010026,7.1961,138.99,138.95,8.9411454]
[1745096010226,25.14,139.0,138.97,8.9411454]
[1745096010426,25.14,139.0,138.99,8.9411454]
[1745096011025,25.14,139.0,138.97,8.9411454]
[1745096011823,32.3356,139.0,138.97,8.9411454]
[1745096012024,25.14,139.0,138.97,8.9411454]
[1745096018623,32.3358,139.0,138.97,8.9411454]
[1745096018829,34.0811454,139.0,138.95,8.9411454]
[1745096020228,34.0811454,139.0,138.93,8.9411454]
[1745096020827,7.1968,138.98,138.93,8.9411454]
[1745096024836,7.1972,138.97,138.93,8.9411454]
[1745096025334,8.9411454,138.98,138.93,8.9411454]
[1745096026242,7.1974,138.97,138.93,8.9411454]
[1745096039453,7.1976,138.96,138.93,8.9411454]
[1745096039654,16.1387454,138.96,138.91,34.0611454]
[1745096041855,8.9411454,138.96,138.91,34.0611454]
[1745096042456,16.1387454,138.96,138.91,34.0611454]
[1745096043257,8.9411454,138.96,138.91,34.0611454]
[1745096044459,41.2579454,138.98,138.91,34.0611454]
[1745096046463,7.1971,138.97,138.91,34.0611454]
[1745096058369,8.9411454,138.96,138.91,8.9411454]
[1745096058675,8.9411454,138.92,138.88,1.9886]
[1745096058974,16.1407454,138.92,138.87,8.9411454]
[1745096059371,8.9411454,138.9,138.86,25.12]
[1745096060975,8.9411454,138.92,138.86,25.12]
[1745096061274,16.1410454,138.92,138.86,25.12]
[1745096061975,7.2003,138.91,138.86,25.12]
[1745096062177,8.9411454,138.9,138.86,25.12]
[1745096075991,25.12,138.92,138.87,8.9411454]
[1745096076198,579.0011454,138.98,138.91,8.9411454]
[1745096076593,8.9411454,138.96,138.91,8.9411454]
[1745096076792,16.1387454,138.96,138.91,8.9411454]
[1745096077392,7.1982,138.95,138.91,8.9411454]
[1745096077593,8.9411454,138.94,138.89,8.9411454]
[1745096078298,16.1400454,138.94,138.89,8.9411454]
[1745096082305,8.9411454,138.94,138.89,8.9411454]
[1745096082604,34.0611454,138.96,138.91,8.9411454]
[1745096083606,41.2587454,138.96,138.91,8.9411454]
[1745096086705,579.0011454,138.98,138.91,34.0611454]
[1745096087407,7.1974,138.97,138.91,34.0611454]
[1745096089210,7.1977,138.96,138.91,34.0611454]
[1745096089507,16.1388454,138.96,138.91,25.12]
[1745096089707,41.2588454,138.96,138.91,25.12]
[1745096093609,7.1981,138.95,138.91,25.12]
[1745096096814,41.2588454,138.96,138.91,25.12]
[1745096097230,34.0611454,138.96,138.9,8.9411454]
[1745096097412,16.1400454,138.94,138.9,8.9411454]
[1745096097612,8.9411454,138.92,138.88,25.12]
[1745096097816,16.1420454,138.9,138.84,12.6555454]
[1745096098014,8.9411454,138.9,138.85,8.9411454]
[1745096098413,16.1420454,138.9,138.85,8.9411454]
[1745096098614,8.9411454,138.9,138.85,8.9411454]
[1745096100612,25.12,138.91,138.85,8.9411454]
[1745096105318,25.12,138.91,138.87,8.9411454]
[1745096112114,34.0611454,138.91,138.85,8.9411454]
[1745096112322,8.9411454,138.89,138.84,26.9905]
[1745096112522,16.1426454,138.89,138.84,26.9905]
[1745096114625,8.9411454,138.89,138.84,26.9905]
[1745096115223,16.1424454,138.89,138.84,26.9905]
[1745096117726,8.9411454,138.89,138.84,26.9905]
[1745096121929,8.9411454,138.89,138.84,25.12]
[1745096124730,16.1423454,138.89,138.84,25.12]
[1745096125529,16.1423454,138.89,138.83,8.9411454]
[1745096126630,8.9411454,138.89,138.83,8.9411454]
[1745096135333,16.1423454,138.89,138.83,8.9411454]
[1745096146651,8.9411454,138.87,138.82,8.9411454]
[1745096146850,8.9411454,138.85,138.81,25.12]
[1745096147356,8.9411454,138.85,138.8,1.8465]
[1745096147556,8.9411454,138.85,138.81,8.9411454]
[1745096147758,10.8424454,138.87,138.81,8.9411454]
[1745096148857,18.0448454,138.87,138.81,8.9411454]
[1745096152058,8.9411454,138.85,138.81,8.9411454]
[1745096155461,8.9411454,138.85,138.8,1.8465]
[1745096155861,16.1444454,138.85,138.8,1.8465]
[1745096156063,8.9411454,138.83,138.79,12.9506454]
[1745096156258,8.9411454,138.83,138.79,10.9616454]
[1745096156863,34.0611454,138.85,138.79,10.9616454]
[1745096160263,8.9411454,138.87,138.81,8.9411454]
[1745096160463,25.12,138.88,138.83,8.9411454]
[1745096161661,25.12,138.88,138.85,8.9411454]
[1745096161967,34.0611454,138.91,138.85,8.9411454]
[1745096162459,8.9411454,138.89,138.85,8.9411454]
[1745096163168,8.9411454,138.89,138.83,8.9411454]
[1745096163370,8.9411454,138.87,138.83,8.9411454]
[1745096164368,16.1427454,138.89,138.83,8.9411454]
[1745096164570,8.9411454,138.89,138.83,8.9411454]
[1745096166167,16.1423454,138.89,138.83,8.9411454]
[1745096166871,8.9411454,138.89,138.83,8.9411454]
[1745096174878,8.9411454,138.89,138.83,34.0611454]
[1745096181282,16.1423454,138.89,138.83,34.0611454]
[1745096184787,8.9411454,138.89,138.83,34.0611454]
[1745096185686,16.1423454,138.89,138.83,34.0611454]
[1745096187183,25.12,138.91,138.87,8.9411454]
[1745096187484,27.0508,138.94,138.89,8.9411454]
[1745096187884,7.1994,138.93,138.89,8.9411454]
[1745096188885,7.1997,138.92,138.89,8.9411454]
[1745096191488,7.1997,138.92,138.87,8.9411454]
[1745096197196,8.9411454,138.91,138.86,25.12]
[1745096197694,7.201,138.9,138.86,34.0611454]
[1745096197896,8.9411454,138.91,138.86,34.0611454]
[1745096198194,8.9411454,138.93,138.86,34.0611454]
[1745096198996,7.2004,138.91,138.86,34.0611454]
[1745096201696,7.1999,138.92,138.86,34.0611454]
[1745096201894,8.9411454,138.93,138.86,34.0611454]
[1745096202288,7.1997,138.92,138.86,34.0611454]
[1745096202491,8.9411454,138.93,138.86,34.0611454]
[1745096202897,7.2004,138.91,138.86,34.0611454]
[1745096203195,8.9411454,138.91,138.86,34.0611454]
[1745096204297,7.2009,138.9,138.86,34.0611454]
[1745096207998,7.2012,138.89,138.86,34.0611454]
[1745096208199,8.9411454,138.91,138.86,34.0611454]
[1745096209199,7.2013,138.89,138.86,34.0611454]
[1745096209394,8.9411454,138.91,138.86,34.0611454]
[1745096210300,7.2009,138.9,138.86,34.0611454]
[1745096213298,8.9411454,138.91,138.86,25.12]
[1745096213500,8.9411454,138.87,138.83,25.1]
[1745096213699,8.9411454,138.87,138.82,8.9411454]
[1745096213999,7.2031,138.86,138.82,8.9411454]
[1745096215299,16.1433454,138.87,138.82,8.9411454]
[1745096222004,7.2031,138.86,138.82,8.9411454]
[1745096222205,8.9411454,138.85,138.8,25.1]
[1745096222902,41.2647454,138.85,138.8,25.1]
[1745096224104,8.9411454,138.83,138.78,12.9454454]
[1745096224402,8.9411454,138.83,138.78,4.0043]
[1745096225205,16.1456454,138.83,138.78,4.0043]
[1745096225405,8.9411454,138.83,138.78,4.0043]
[1745096227907,8.9411454,138.83,138.79,8.9411454]
[1745096228109,34.0611454,138.85,138.79,8.9411454]
[1745096228407,34.0611454,138.85,138.81,8.9411454]
[1745096228707,25.12,138.85,138.81,8.9411454]
[1745096230309,25.12,138.85,138.82,8.9411454]
[1745096230606,8.9411454,138.87,138.8,10.8404454]
[1745096230910,7.203,138.86,138.8,10.8404454]
[1745096233311,16.1436454,138.87,138.8,10.8404454]
[1745096234312,7.2028,138.86,138.8,10.8404454]
[1745096235810,7.2033,138.85,138.8,10.8404454]
[1745096236311,41.2644454,138.85,138.8,10.8404454]
[1745096236509,7.2038,138.84,138.8,8.9411454]
[1745096238312,7.2043,138.83,138.79,25.12]
[1745096238712,34.0611454,138.85,138.79,25.12]
[1745096239010,34.0611454,138.85,138.78,12.9454454]
[1745096239412,7.2041,138.84,138.78,12.9454454]
[1745096240515,8.9411454,138.83,138.78,2.0385]
[1745096240712,8.9411454,138.83,138.76,34.0611454]
[1745096241917,7.2052,138.82,138.76,34.0611454]
[1745096243116,16.1465454,138.81,138.76,34.0611454]
[1745096244818,25.12,138.82,138.78,8.9411454]
[1745096245713,8.9411454,138.85,138.8,8.9411454]
[1745096246417,7.2041,138.84,138.8,8.9411454]
[1745096247020,7.2045,138.83,138.8,8.9411454]
[1745096248223,25.12,138.86,138.8,8.9411454]
[1745096248821,32.3232,138.86,138.8,8.9411454]
[1745096252329,25.12,138.86,138.8,8.9411454]
[1745096252829,25.12,138.86,138.82,8.9411454]
[1745096253327,32.3228,138.86,138.82,8.9411454]
[1745096255731,25.12,138.86,138.82,8.9411454]
[1745096256536,32.3228,138.86,138.82,8.9411454]
[1745096262937,25.12,138.86,138.82,8.9411454]
[1745096273841,32.3229,138.86,138.82,8.9411454]
[1745096281845,7.2034,138.85,138.8,8.9411454]
[1745096282346,32.323,138.86,138.8,8.9411454]
[1745096285052,25.12,138.86,138.8,8.9411454]
[1745096290358,32.3228,138.86,138.8,8.9411454]
[1745096293662,25.12,138.86,138.8,8.9411454]
[1745096301664,25.12,138.86,138.82,8.9411454]
[1745096305067,32.3229,138.86,138.82,8.9411454]
[1745096305367,32.3229,138.86,138.8,34.0411454]
[1745096309670,25.12,138.86,138.82,8.9411454]
[1745096316574,32.3228,138.86,138.82,8.9411454]
[1745096317879,32.3228,138.86,138.81,8.9411454]
[1745096333089,7.2028,138.86,138.81,8.9411454]
[1745096339189,25.1,138.87,138.83,8.9411454]
[1745096339389,25.1,138.9,138.85,8.9411454]
[1745096339597,25.1,138.9,138.87,8.9411454]
[1745096341396,32.3007,138.9,138.87,8.9411454]
[1745096356304,7.2012,138.89,138.85,8.9411454]
[1745096356504,8.9411454,138.89,138.83,34.0411454]
[1745096356904,7.2021,138.88,138.83,34.0411454]
[1745096360106,7.2023,138.87,138.83,34.0411454]
[1745096360406,7.2023,138.87,138.83,8.9411454]
[1745096360604,32.3023,138.87,138.83,8.9411454]
[1745096362008,25.1,138.87,138.83,8.9411454]
[1745096363311,32.3024,138.87,138.83,8.9411454]
[1745096367316,25.1,138.87,138.83,8.9411454]
[1745096377319,25.1,138.87,138.85,8.9411454]
[1745096377512,7.2015,138.89,138.85,8.9411454]
[1745096380122,32.3008,138.9,138.85,8.9411454]
[1745096380422,8.9411454,138.89,138.83,8.9411454]
[1745096380620,10.7888454,138.89,138.83,8.9411454]
[1745096380823,8.9411454,138.87,138.81,8.9411454]
[1745096381022,25.1,138.86,138.81,8.9411454]
[1745096381222,8.9411454,138.85,138.79,8.9411454]
[1745096381722,16.1444454,138.85,138.79,8.9411454]
[1745096382921,7.204,138.84,138.79,8.9411454]
[1745096383124,8.9411454,138.83,138.77,36.0551454]
[1745096383320,34.0411454,138.83,138.77,36.0551454]
[1745096383520,41.2458454,138.83,138.77,36.0551454]
[1745096388224,8.9411454,138.81,138.75,1.8925]
[1745096388425,8.9411454,138.81,138.75,10.8336454]
[1745096388626,8.9411454,138.81,138.75,8.9411454]
[1745096389029,8.9411454,138.79,138.75,8.9411454]
[1745096389630,7.2075,138.77,138.72,2.0059]
[1745096389923,25.1,138.78,138.77,0.04576337]
[1745096390124,34.0411454,138.78,138.72,8.9411454]
[1745096390326,34.0411454,138.78,138.71,8.9411454]
[1745096390930,7.2077,138.77,138.71,8.9411454]
[1745096391433,41.2482454,138.78,138.71,8.9411454]
[1745096395034,41.1968359,138.78,138.71,8.9411454]
[1745096397841,16.1491454,138.76,138.71,8.9411454]
[1745096400739,7.2086,138.75,138.7,8.9411454]
[1745096401339,16.1493454,138.76,138.7,8.9411454]
[1745096401540,8.9411454,138.76,138.7,8.9411454]
[1745096402038,7.2088,138.75,138.7,8.9411454]
[1745096403441,16.1492454,138.76,138.7,8.9411454]
[1745096404641,8.9411454,138.76,138.7,8.9411454]
[1745096405241,16.1490454,138.76,138.7,8.9411454]
[1745096408935,8.9411454,138.76,138.7,8.9411454]
[1745096410139,9.05,138.77,138.7,8.9411454]
[1745096410339,17.9911454,138.77,138.7,8.9411454]
[1745096410539,32.2556905,138.78,138.72,8.9411454]
[1745096413048,8.9411454,138.77,138.72,8.9411454]
[1745096416552,16.1488454,138.77,138.72,8.9411454]
[1745096417349,8.9411454,138.75,138.68,3.8634]
[1745096417553,8.9411454,138.73,138.67,8.9411454]
[1745096417847,41.2710454,138.73,138.67,8.9411454]
[1745096421052,7.2102,138.72,138.67,8.9411454]
[1745096423148,7.2108,138.71,138.67,8.9411454]
[1745096423348,34.0611454,138.73,138.67,8.9411454]
[1745096423953,7.2103,138.72,138.67,8.9411454]
[1745096426246,7.2106,138.71,138.67,8.9411454]
[1745096426555,8.9411454,138.71,138.67,8.9411454]
[1745096426855,16.1517454,138.71,138.67,8.9411454]
[1745096428553,8.9411454,138.71,138.67,8.9411454]
[1745096430351,7.2103,138.72,138.67,8.9411454]
[1745096430959,7.2106,138.71,138.67,8.9411454]
[1745096432359,7.2103,138.72,138.67,8.9411454]
[1745096435164,7.2106,138.71,138.67,8.9411454]
[1745096435768,7.2102,138.72,138.67,8.9411454]
[1745096436365,34.0611454,138.73,138.67,8.9411454]
[1745096437264,7.2106,138.71,138.67,8.9411454]
[1745096437464,34.0611454,138.73,138.67,8.9411454]
[1745096438063,7.2103,138.72,138.67,8.9411454]
[1745096442369,34.0611454,138.73,138.67,8.9411454]
[1745096442370,7.2106,138.71,138.67,8.9411454]
[1745096442668,34.0611454,138.73,138.67,8.9411454]